[Event "HSK GM Invitational 2022"]
[Site "Hamburg"]
[Date "2022.05.23"]
[Round "4.4"]
[White "Souleidis, Georgios"]
[Black "Svane, Frederik"]
[Result "1/2-1/2"]
[ECO "B90"]
[WhiteElo "2430"]
[BlackElo "2501"]
[Annotator "TA"]
[PlyCount "100"]
[EventDate "2022.05.20"]
[EventType "tourn"]
[EventCountry "GER"]
[SourceTitle "playchess.com"]
[Source "ChessBase"]
[SourceQuality "1"]
[TimeControl "40/5400+30:1800+30"]

{[%evp 10,100,22,12,33,17,21,20,43,-4,0,0,0,0,0,0,12,17,41,37,35,39,21,30,95,82,70,78,124,111,102,0,116,121,122,115,125,117,117,117,117,117,117,117,117,121,120,117,116,106,99,102,125,122,125,117,153,133,225,162,204,129,139,109,109,110,110,110,110,109,125,0,104,104,110,63,64,9,25,24,10,0,0,0,47,0,0,0,0,0,0,0,0]} 1. e4 {[%emt 0:00:03]} c5 {[%emt 0:13:10]} 2. Nf3 {[%emt 0:00:06]} d6 {[%emt 0:00:07]} 3. d4 {[%emt 0:01:26]} cxd4 {[%emt 0:00:12]} 4. Nxd4 {[%emt 0:00:06]} Nf6 {[%emt 0:00:06]} 5. Nc3 {[%emt 0:00:03]} a6 {[%emt 0:00:06]} 6. a3 {[%emt 0:13:30]} g6 {[%emt 0:00:11] B90: Sicilian Najdorf: Unusual White 6th moves, 6 Be3 Ng4 and 6 Be3 e5.} 7. Be2 {[%emt 0:03:28]} Bg7 {[%emt 0:00:27]} 8. Be3 {[%emt 0:01:00]} Nbd7 {[%emt 0:13:32] [#]} 9. g4 $146 {[%emt 0:03:38]} (9. f3 $14) ({Predecessor:} 9. Qd2 b5 10. Bh6 Bxh6 11. Qxh6 Bb7 12. O-O Rc8 13. Rfe1 Qb6 14. Rad1 e5 15. Nb3 Bxe4 {0-1 (43) Sadhwani,R (2434)-Andriasian,Z (2604) Montebelluna 2018}) 9... Nc5 {[%emt 0:08:22]} 10. f3 {[%emt 0:03:56]} e5 {[%emt 0:12:11]} 11. Nb3 {[%emt 0:00:06]} Nxb3 {[%emt 0:00:29]} 12. cxb3 {[%emt 0:00:02]} Be6 {[%emt 0:01:03]} 13. Bc4 {[%emt 0:11:56] Inhibits d5.} Rc8 {[%emt 0:06:51]} 14. Qd3 {[%emt 0:16:36]} b5 {[%emt 0:22:03]} 15. Bxe6 {[%emt 0:05:26]} fxe6 {[%emt 0:00:03]} 16. Rd1 {[%emt 0:00:12]} Rc6 {[%emt 0:07:10]} (16... d5 $11 {keeps the balance.}) 17. Na2 $1 $16 {[%emt 0:06:54]} d5 {[%emt 0:04:45]} 18. Nb4 {[%emt 0:02:39][%csl LRc6,LRd5]} Rd6 {[%emt 0:00:03] [#]} (18... Rc8 $142) 19. Nxa6 $1 {[%emt 0:08:19][%mdl 512]} O-O {[%emt 0:02:28]} 20. Nb4 {[%emt 0:00:35] White is more active.} ({Much less strong is} 20. Qxb5 Ne8 $11) (20. Nc5 $16 {And now Nb7 would win.} Nxg4 21. fxg4 Qh4+ 22. Kd2) 20... Nd7 {[%emt 0:04:41]} (20... Ne8 $11 21. Ke2 Rxf3 $1) 21. O-O {[%emt 0:04:17][%cal Re4d5]} d4 {[%emt 0:00:03]} 22. Rc1 {[%emt 0:01:27] Prevents Nc5.} ({But not} 22. Qxb5 Rb6 23. Qd3 h5 $14) 22... Qb6 {[%emt 0:00:48]} 23. Bd2 {[%emt 0:00:50]} Nc5 {[%emt 0:02:11]} 24. Qc2 {[%emt 0:01:19]} Rc8 {[%emt 0:00:03] aiming for ...d3.} 25. Nd3 {[%emt 0:03:26][%cal Rd3c5]} Rdc6 {[%emt 0:00:02][%cal Oc5e4]} 26. Nxc5 {[%emt 0:00:06]} Rxc5 {[%emt 0:00:03]} 27. Qd3 {[%emt 0:00:05]} Kf7 {[%emt 0:00:36]} 28. Rxc5 {[%emt 0:00:48]} Rxc5 {[%emt 0:00:04]} 29. Rc1 {[%emt 0:00:49]} Rxc1+ {[%emt 0:00:22]} 30. Bxc1 {[%emt 0:00:01][%mdl 4096] Endgame KQB-KQB} Ke7 {[%emt 0:00:34]} 31. Bd2 {[%emt 0:00:14]} Kd7 {[%emt 0:00:08]} 32. Kf1 {[%emt 0:00:35]} Kc6 {[%emt 0:00:33]} 33. Ke2 {[%emt 0:00:42]} Qc5 {[%emt 0:00:32]} (33... Kb7 $16 34. Qc2 Bf8) 34. a4 {[%emt 0:03:51]} Kb6 {[%emt 0:00:30]} 35. h3 {[%emt 0:00:30]} Bf6 {[%emt 0:00:30]} 36. axb5 {[%emt 0:00:30]} Qxb5 {[%emt 0:00:30]} 37. Qc4 {[%emt 0:05:43]} Be7 {[%emt 0:00:10]} 38. Kd3 {[%emt 0:00:27]} Bd6 {[%emt 0:02:42]} 39. Bg5 {[%emt 0:03:35] Bd8+ is the strong threat.} Qd7 {[%emt 0:00:00] Against Bd8+} 40. Bd2 {[%emt 0:01:14]} (40. Bf6 $16) 40... Qe8 {[%emt 0:00:00]} (40... Qb5 $11 {remains equal.}) 41. f4 {[%emt 0:21:44]} exf4 {[%emt 0:24:29] [#]} 42. Qxd4+ {[%emt 0:00:24]} (42. e5 $1 $16 {[%cal Re5d6]} Bxe5 {[#]} 43. Bxf4 $1 {[%mdl 512]}) 42... Bc5 $14 {[%emt 0:00:32]} 43. Qf6 {[%emt 0:02:36]} (43. Qa4 $14 Qd8+ 44. Kc2) 43... Qb5+ {[%emt 0:02:31]} 44. Kc2 {[%emt 0:00:00]} Qc6 {[%emt 0:00:07] White must now prevent ...Bd4+.} 45. Kd3 {[%emt 0:01:12] Prevents Bd4.} Qd6+ {[%emt 0:01:15]} (45... Qb5+ $11 46. Kc2 Qc6 47. Qd8+ Ka7) 46. Ke2 {[%emt 0:01:43]} e5 {[%emt 0:01:43]} 47. Qxd6+ {[%emt 0:00:40]} (47. g5 $1 $14) 47... Bxd6 $11 {[%emt 0:00:05] The position is equal.} 48. Bc3 {[%emt 0:00:06]} Kc5 {[%emt 0:00:13]} 49. Kf3 {[%emt 0:00:41]} Bc7 {[%emt 0:00:17]} 50. Ke2 {[%emt 0:01:33]} Bd6 {[%emt 0:00:08] White really could win this.  Weighted Error Value: White=0.16 (very precise) /Black=0.23 (precise)} 1/2-1/2

[Event "HSK GM Invitational 2022"]
[Site "Hamburg"]
[Date "2022.05.23"]
[Round "4.5"]
[White "Trent, Lawrence"]
[Black "Colpe, Malte"]
[Result "1-0"]
[ECO "B13"]
[WhiteElo "2398"]
[BlackElo "2348"]
[Annotator "TA"]
[PlyCount "63"]
[EventDate "2022.05.20"]
[EventType "tourn"]
[EventCountry "GER"]
[SourceTitle "playchess.com"]
[Source "ChessBase"]
[SourceQuality "1"]
[TimeControl "40/5400+30:1800+30"]

{[%evp 9,63,-11,0,-4,-1,-7,-7,-29,-7,-22,-21,-43,-23,-25,-15,-23,-14,-27,0,-4,27,4,11,13,6,-51,-45,-65,-5,-18,32,40,43,15,50,35,208,195,527,520,1537,514,622,622,643,676,665,647,1234,1238,1272,1131,1425,1408,2068,1318]} 1. Nc3 {[%emt 0:00:17]} d5 {[%emt 0:01:04]} 2. d4 {[%emt 0:00:06]} Nf6 {[%emt 0:00:50]} 3. Bf4 {[%emt 0:00:05]} c5 {[%emt 0:00:48]} 4. e3 {[%emt 0:00:13]} cxd4 {[%emt 0:00:37]} 5. exd4 {[%emt 0:00:01]} a6 {[%emt 0:00:39]} 6. Nf3 {[%emt 0:00:04] B13: Caro-Kann: Exchange Variation and Panov-Botvinnik Attack.} Nc6 {[%emt 0:00:13]} 7. Ne5 {[%emt 0:00:03]} Bd7 {[%emt 0:01:12]} 8. g4 {[%emt 0:01:30] The position is equal. 8.g3 is becoming the main line.} h6 {[%emt 0:00:55] [#]} 9. Bg2 $146 {[%emt 0:01:36]} ({Predecessor:} 9. Nxc6 Bxc6 10. Qf3 e6 11. O-O-O Rc8 12. Bd3 Qb6 13. Rhe1 Bb4 14. Bxh6 Rxh6 15. g5 Rxh2 16. gxf6 {½-½ (34) Grayland,S (2352)-Mason,I (2272) ICCF email 2021}) 9... e6 {[%emt 0:03:25]} ({Resist} 9... Nxe5 10. dxe5 Bxg4 11. f3 $16) 10. h4 {[%emt 0:05:25]} Bb4 {[%emt 0:14:13]} 11. Kf1 {[%emt 0:09:34]} Bxc3 {[%emt 0:11:26]} 12. bxc3 {[%emt 0:00:01]} Nxe5 {[%emt 0:07:29]} 13. Bxe5 {[%emt 0:00:31][%cal Oc3c4]} Bb5+ {[%emt 0:02:30]} 14. Kg1 {[%emt 0:00:08]} Rg8 {[%emt 0:01:00]} 15. a4 {[%emt 0:07:42]} Bc6 {[%emt 0:01:08]} 16. a5 {[%emt 0:14:55]} Ne4 {[%emt 0:04:20]} 17. Qd3 {[%emt 0:09:20]} ({White should play} 17. Rh3 $11) 17... Rc8 $15 {[%emt 0:03:27]} 18. Qe3 {[%emt 0:12:16]} f6 {[%emt 0:08:59]} ({Better is} 18... Bb5 $1 $15 19. Bxe4 dxe4) 19. Bf4 $11 {[%emt 0:08:04] [#] aiming for f3.} g5 {[%emt 0:05:10]} (19... Kf7 $11) 20. hxg5 $14 {[%emt 0:03:47]} hxg5 {[%emt 0:00:07]} 21. Bh2 {[%emt 0:07:37]} Kf7 {[%emt 0:02:31]} 22. c4 {[%emt 0:01:50][%cal Bc3c4,Bc4c5][%mdl 32] Inhibits Bb5. And now c5 would win.} (22. f3 $5 {[%cal Rf3e4]} Nd6 23. Re1 $14) 22... Qd7 $2 {[%emt 0:04:46] [#] Loses the game.} (22... Rh8 $14) 23. c5 $1 $18 {[%emt 0:01:22]} f5 $2 {[%emt 0:05:42]} (23... e5 {is a better chance.}) 24. Be5 {[%emt 0:02:39] White is clearly winning.} f4 {[%emt 0:02:51]} (24... Ke8 $142 25. gxf5 g4 26. Bxe4 dxe4 27. fxe6 Qxe6) 25. Qe1 {[%emt 0:01:55]} (25. Rh7+ $142 Rg7 26. Rxg7+ Kf8 27. Qb3 Qxg7 28. Bxg7+ Kxg7 29. Bxe4) 25... Ke8 {[%emt 0:01:57]} 26. Ra3 {[%emt 0:00:30][%cal Ba1a3,Ba3h3,Bh3h6][%mdl 32]} Qf7 {[%emt 0:04:59]} 27. Rah3 {[%emt 0:00:10] Strongly threatening Rh7.} Nf6 {[%emt 0:00:36] Prevents Rh7.} 28. Bf1 {[%emt 0:04:01][%cal Bg2f1,Bf1d3,Bd3h7,Bh7g6][%mdl 32] This bishop pair is nice.} Kd7 {[%emt 0:02:11]} 29. Rh6 {[%emt 0:00:55]} Ne8 {[%emt 0:04:20]} 30. Bd3 {[%emt 0:00:11]} Ng7 {[%emt 0:01:19]} 31. Bh7 {[%emt 0:01:15]} Rh8 {[%emt 0:02:40]} 32. Bg6 {[%emt 0:00:07] Weighted Error Value: White=0.33/Black=0.47} 1-0

[Event "HSK GM Invitational 2022"]
[Site "Hamburg"]
[Date "2022.05.24"]
[Round "5.1"]
[White "Colpe, Malte"]
[Black "Prohaszka, Peter"]
[Result "1-0"]
[ECO "A63"]
[WhiteElo "2348"]
[BlackElo "2579"]
[Annotator "TA"]
[PlyCount "71"]
[EventDate "2022.05.20"]
[EventType "tourn"]
[EventCountry "GER"]
[SourceTitle "playchess.com"]
[Source "ChessBase"]
[SourceQuality "1"]
[TimeControl "40/5400+30:1800+30"]

{[%evp 21,73,29,51,20,20,31,62,37,125,95,89,68,151,163,128,35,177,163,281,95,94,77,176,180,191,176,181,191,168,178,176,173,167,184,185,181,184,183,191,184,174,175,171,158,243,166,470,470,477,470,547,564,523,493]} 1. d4 {[%emt 0:00:28]} Nf6 {[%emt 0:00:10]} 2. c4 e6 3. Nc3 Bb4 4. e3 Nc6 5. Bd2 Bxc3 6. Bxc3 O-O 7. Bd3 d6 8. Ne2 e5 9. d5 Ne7 10. O-O b5 11. b3 c6 12. e4 Ba6 13. cxb5 Bxb5 14. Bxb5 cxb5 15. Qd3 Qb6 16. Bd2 Nd7 17. Be3 Qb7 18. a4 a6 19. axb5 axb5 20. Nc3 Rfb8 21. b4 Ra6 22. Rfb1 Nc8 23. Ra5 Rxa5 24. bxa5 b4 25. Qc4 h6 26. h3 Kh7 27. Qc6 Qxc6 28. dxc6 Nc5 29. Nd5 b3 30. Nb6 Na7 31. c7 Rb7 32. c8=Q Nxc8 33. Nxc8 Ne6 34. a6 Rc7 35. Nb6 Ra7 36. f3 1-0

[Event "HSK GM Invitational 2022"]
[Site "Hamburg"]
[Date "2022.05.24"]
[Round "5.2"]
[White "Svane, Frederik"]
[Black "Trent, Lawrence"]
[Result "1-0"]
[ECO "E94"]
[WhiteElo "2501"]
[BlackElo "2398"]
[Annotator "TA"]
[PlyCount "353"]
[EventDate "2022.05.20"]
[EventType "tourn"]
[EventCountry "GER"]
[SourceTitle "playchess.com"]
[Source "ChessBase"]
[SourceQuality "1"]
[TimeControl "40/5400+30:1800+30"]

{[%evp 15,169,40,47,33,39,25,30,32,43,41,53,20,41,41,57,27,27,27,29,27,29,25,24,20,26,28,27,16,13,16,14,0,0,0,0,0,0,0,43,43,51,50,53,50,48,40,31,37,42,51,31,10,0,8,61,33,37,45,52,62,62,52,77,83,81,81,127,133,127,87,94,91,103,83,495,489,426,8,12,16,24,8,8,0,0,13,23,25,25,26,32,26,30,16,322,322,1177,1055,2614,3131,1745,1692,1214,1116,12791,7953,29947,29954,29952,29958,29960,29960,29946,12819,12317,6546,5513,2822,1531,0,29977,5473,29976,29977,29982,29983,29984,29979,29981,29980,29982,29983,29984,29985,29985,29979,29979,29980,29980,29981,29981,29982,29982,29983,29983,29984,29984,29985,29985,29986,29988,29987,29987,29988,29988,29989]} 1. e4 e5 2. Nf3 Nc6 3. Nc3 Nf6 4. Bb5 Bd6 5. d3 h6 6. Ba4 Bc5 7. O-O d6 8. Ne2 Bg4 9. d4 exd4 10. Nexd4 O-O 11. Nxc6 bxc6 12. Bxc6 Rb8 13. Qd3 Rb6 14. Bd5 Nxd5 15. Qxd5 Qf6 16. Qd3 Re8 17. Nd2 d5 18. Qxd5 Re5 19. Qd3 Rd6 20. Qg3 Be2 21. Re1 Rg5 22. e5 Qf5 23. exd6 Rxg3 24. Rxe2 Rg6 25. dxc7 Bb6 26. Nf1 Bxc7 27. Ng3 Qg4 28. Bd2 h5 29. Rae1 Kh7 30. Re4 Qd7 31. Bc1 Rg4 32. Re7 Qc6 33. Rxf7 h4 34. h3 Qc4 35. Rf3 Rg6 36. Nf5 Qxc2 37. Ne3 Qc6 38. Rf5 Re6 39. Rh5+ Kg8 40. Rxh4 Re4 41. Rxe4 Qxe4 42. Bd2 Bb6 43. Ng4 Qa4 44. Bc3 Ba5 45. b3 Qa3 46. Bxa5 Qxa5 47. Re2 Qf5 48. Ne3 Qf6 49. Rc2 Kh7 50. Rc4 Qb2 51. Rc2 Qd4 52. Kf1 Qd3+ 53. Ke1 Qa6 54. Rd2 Qa5 55. Ke2 Qb5+ 56. Kd1 Qe5 57. Ke1 Qa5 58. h4 Qe5 59. g3 Qe4 60. Ke2 Qe6 61. Rd3 Qa6 62. a4 Qe6 63. Rd5 Qb6 64. Rb5 Qc6 65. Rh5+ Kg8 66. Rg5 Qe6 67. Rb5 Kh7 68. Kf1 a6 69. Rd5 Qe4 70. Rd1 Qb4 71. Rd3 Qe4 72. Ke2 Qe7 73. Kf3 Qf7+ 74. Kg2 Qg6 75. Rc3 Qe4+ 76. Kh2 Qf3 77. Kg1 Qf6 78. Rc4 Qa1+ 79. Kg2 Qa3 80. Rc3 Qb4 81. Rc4 Qxb3 82. Rf4 Qe6 83. Kg1 Kh8 84. Nf5 Qe5 85. Nd4 Qe1+ 86. Kg2 Qe8 87. Nf3 Kg8 88. Ng5 Qc6+ 89. Kh2 Qb6 90. Rf5 g6 91. Rf4 Qc6 92. Nf3 Qc3 93. Ng5 Qc6 94. Ne4 Kg7 95. Nf6 Qe6 96. Ng4 Qd5 97. Ne3 Qb3 98. Kg2 Qb8 99. Rd4 Qb7+ 100. Kh2 Qf7 101. Kg1 Qe6 102. Ng2 Qe5 103. Nf4 Qe1+ 104. Kg2 Qa1 105. Re4 Kf7 106. Ne6 Qa3 107. Ng5+ Kg7 108. Rf4 Qb3 109. Rf7+ Kg8 110. Rf4 Kg7 111. Kh2 Qa2 112. Kg1 Qb1+ 113. Kh2 Qa2 114. Nh3 Qd5 115. Rg4 Qf3 116. Rg5 Kh6 117. Rc5 Kg7 118. a5 Kg8 119. Re5 Qf6 120. Rg5 Kh7 121. Nf4 Qd4 122. Kg1 Qa1+ 123. Kg2 Qa4 124. Re5 Qc6+ 125. Kh2 Qc2 126. Nh3 Qa2 127. Kg2 Qa4 128. Nf4 Qc6+ 129. Kh2 Qc2 130. Nh3 Qa2 131. Rc5 Qe2 132. Rc7+ Kg8 133. Rc6 Qd3 134. Rc5 Qf3 135. Re5 Qf6 136. Rd5 Qc6 137. Nf4 Kf7 138. Re5 Qc2 139. Nh3 Kf6 140. Rd5 Qc6 141. Nf4 Qc2 142. Nh3 Qc6 143. Rg5 Qc2 144. h5 gxh5 145. Rxh5 Kg7 146. Rg5+ Kf7 147. Rd5 Qa2 148. Rf5+ Kg7 149. Kg2 Qc2 150. Rh5 Qe4+ 151. Kh2 Qc2 152. Re5 Kf6 153. Rd5 Ke7 154. Rh5 Qd2 155. Rf5 Qd6 156. Nf4 Qd4 157. Nd5+ Ke6 158. Ne3 Qh8+ 159. Kg2 Qa8+ 160. Rd5 Qb8 161. g4 Qb4 162. Rf5 Qb7+ 163. Kg3 Qh1 164. g5 Qg1+ 165. Kh4 Qh1+ 166. Kg4 Qg1+ 167. Kh5 Qh1+ 168. Kg6 Qe4 169. Kg7 Qb7+ 170. Kg8 Qb8+ 171. Rf8 Qb1 172. Nf5 Qa2 173. f4 Qxa5 174. g6 Qd5 175. Kh7 Qh1+ 176. Nh6 Ke7 177. g7 1-0

[Event "HSK GM Invitational 2022"]
[Site "Hamburg"]
[Date "2022.05.24"]
[Round "5.3"]
[White "Kotronias, Vasilios"]
[Black "Souleidis, Georgios"]
[Result "1-0"]
[ECO "B90"]
[WhiteElo "2465"]
[BlackElo "2430"]
[Annotator "TA"]
[PlyCount "60"]
[EventDate "2022.05.20"]
[EventType "tourn"]
[EventCountry "GER"]
[SourceTitle "playchess.com"]
[Source "ChessBase"]
[SourceQuality "1"]
[TimeControl "40/5400+30:1800+30"]

1. e4 {[%emt 0:00:03]} e5 2. Nf3 Nc6 3. Bb5 a6 4. Ba4 Nf6 5. O-O Nxe4 6. d4 Be7 7. Qe2 b5 8. Bb3 d5 9. dxe5 Na5 10. Nbd2 Nxb3 11. axb3 Bb7 12. Nd4 Qc8 13. Qh5 g6 14. Qd1 c5 15. Ne2 O-O 16. Nf3 Qc6 17. b4 cxb4 18. Nfd4 Qd7 19. Bh6 Rfe8 20. f3 Nc5 21. Qd2 Ne6 22. f4 Bc5 23. Kh1 a5 24. Nb3 Bb6 25. f5 Ng7 26. e6 fxe6 27. fxg6 Nf5 28. gxh7+ Kxh7 29. Bg5 d4 30. Qd3 a4 1-0

[Event "HSK GM Invitational 2022"]
[Site "Hamburg"]
[Date "2022.05.24"]
[Round "5.4"]
[White "Koellner, Ruben Gideon"]
[Black "Mendonca, Leon Luke"]
[Result "1/2-1/2"]
[ECO "C41"]
[WhiteElo "2440"]
[BlackElo "2551"]
[Annotator "TA"]
[PlyCount "130"]
[EventDate "2022.05.20"]
[EventType "tourn"]
[EventCountry "GER"]
[SourceTitle "playchess.com"]
[Source "ChessBase"]
[SourceQuality "1"]
[TimeControl "40/5400+30:1800+30"]

1. d4 d5 2. c4 e6 3. Nc3 c6 4. e3 Nf6 5. Nf3 Nbd7 6. Be2 Bd6 7. O-O O-O 8. b3 b6 9. Qc2 Bb7 10. e4 dxe4 11. Nxe4 Nxe4 12. Qxe4 Nf6 13. Qh4 c5 14. Bb2 Ne4 15. Qh3 Qe7 16. Rad1 cxd4 17. Nxd4 Rad8 18. Bd3 Bc5 19. Bxe4 Bxe4 20. Qg4 f5 21. Qe2 e5 22. Nb5 Qg5 23. g3 Qg4 24. Qxg4 fxg4 25. Rxd8 Rxd8 26. Bxe5 Rd2 27. Bc3 Rxa2 28. Nd4 a5 29. Ra1 Rxa1+ 30. Bxa1 Kf7 31. Kf1 Bf3 32. Bc3 g6 33. Ke1 Be4 34. Ke2 h5 35. Ke3 Bb1 36. Kd2 Ke7 37. Kc1 Be4 38. Kd2 Kf7 39. Nb5 Ke6 40. Nd4+ Kd7 41. Ke3 Bc2 42. Kd2 Bb1 43. Kc1 Be4 44. Kd2 Be7 45. Ne2 Bg5+ 46. Nf4 Kc6 47. Bd4 Be7 48. Kc3 Bb4+ 49. Kb2 Be1 50. Be3 Bb4 51. Bd4 Be1 52. Be3 b5 53. cxb5+ Kxb5 54. Ne6 Kc6 55. Nd4+ Kd5 56. Nc2 Bxc2 57. Kxc2 Bb4 58. Kd3 Be1 59. Kc2 Bb4 60. Kd3 Bc5 61. Bd2 Bxf2 62. Bxa5 Bg1 63. Ke2 Bxh2 64. Kf2 h4 65. gxh4 Bd6 1/2-1/2

[Event "HSK GM Invitational 2022"]
[Site "Hamburg"]
[Date "2022.05.24"]
[Round "5.5"]
[White "Carlstedt, Jonathan"]
[Black "Woelk, Tom-Frederic"]
[Result "1/2-1/2"]
[ECO "B13"]
[WhiteElo "2444"]
[BlackElo "2315"]
[Annotator "TA"]
[PlyCount "173"]
[EventDate "2022.05.20"]
[EventType "tourn"]
[EventCountry "GER"]
[SourceTitle "playchess.com"]
[Source "ChessBase"]
[SourceQuality "1"]
[TimeControl "40/5400+30:1800+30"]

1. d4 Nf6 2. c4 e6 3. Nc3 d5 4. Nf3 Be7 5. Bg5 Nbd7 6. e3 O-O 7. Rc1 h6 8. Bxf6 Nxf6 9. c5 c6 10. b4 Nd7 11. Bd3 Bf6 12. e4 dxe4 13. Bxe4 Bg5 14. Rb1 Nf6 15. Nxg5 hxg5 16. h4 Nxe4 17. Nxe4 Qd5 18. Qd3 g4 19. O-O e5 20. Rbd1 exd4 21. Qxd4 Be6 22. a4 Qh5 23. Nd6 Rfd8 24. Qf4 Rd7 25. a5 Qxh4 26. Rfe1 Rad8 27. Rd3 Qf6 28. Qd2 Qh6 29. Rde3 Qf4 30. Rd1 b6 31. a6 bxc5 32. bxc5 Qa4 33. Qe2 Re7 34. Re1 Qb4 35. Re4 Qa3 36. Re5 Rb8 37. Rg5 Qb2 38. Nf5 Qxe2 39. Nxe7+ Kf8 40. Rxe2 Rb1+ 41. Kh2 Kxe7 42. Rxg4 Ra1 43. Rxg7 Rxa6 44. Rg3 Ra5 45. Rc3 Rb5 46. g4 Kf6 47. Kg3 a5 48. Re4 Bb3 49. Rd4 Bd5 50. f3 Ke5 51. Rd1 a4 52. Re3+ Kf6 53. Ra3 Bb3 54. Rd6+ Ke7 55. Rxc6 Kd7 56. Rd6+ Kc7 57. Rh6 Rxc5 58. Kf4 Rc6 59. g5 Rc4+ 60. Ke5 Rc5+ 61. Kf6 Kb6 62. f4 Kb5 63. Ra1 Kb4 64. f5 Bc2 65. Rh4+ Kb5 66. Rf4 Bb3 67. Kg7 Rc4 68. Rf3 Rg4 69. Kf6 Kb4 70. Re3 Rf4 71. Rc1 Ka3 72. Rc5 Ka2 73. Re2+ Ka3 74. Re7 Rg4 75. Rb5 Rb4 76. Ra5 Rg4 77. Rea7 Kb2 78. Ra8 Rf4 79. g6 fxg6 80. Kxg6 Bc2 81. Rb8+ Ka2 82. Kg5 Rxf5+ 83. Rxf5 Bxf5 84. Kxf5 a3 85. Ke4 Ka1 86. Kd3 a2 87. Kc2 1/2-1/2